bitfinex/quotes_ETHUSD_20241119
["timestamp","ask_amount","ask_price","bid_price","bid_amount"]
[1732030860746,0.435,3100.5,3100.3,3.22541]
[1732030861025,0.435,3100.8,3100.2,3.22556]
[1732030861179,4.03319663,3100.8,3100.1,3.22569]
[1732030861537,4.03319663,3100.8,3099.6,4.00772868]
[1732030861538,0.80819663,3100.8,3099.6,0.78159868]
[1732030861841,0.435,3100.8,3100.2,3.22552]
[1732030862026,0.435,3100.8,3100.1,3.2256]
[1732030862325,0.435,3100.8,3100.3,3.22542]
[1732030862477,0.365992,3100.7,3100.1,6.45121]
[1732030862828,0.365992,3100.7,3100.1,3.2256]
[1732030862990,0.365992,3100.7,3100.1,6.45123]
[1732030863211,0.365992,3100.7,3100.1,3.2256]
[1732030863420,0.365992,3100.7,3099.8,0.63008319]
[1732030863421,0.435,3100.8,3100.4,3.22536]
[1732030863590,0.435,3100.8,3100.2,6.45106]
[1732030863793,1.77867107,3101.1,3100.3,3.55]
[1732030864028,1.77867107,3101.1,3100.2,3.953806]
[1732030864029,0.435,3101.1,3100.9,3.22486]
[1732030864228,0.435,3101.4,3101.1,3.22459]
[1732030864546,0.17786711,3101.3,3101.1,3.22459]
[1732030864687,0.435,3101.4,3101.2,3.22455]
[1732030864887,0.435,3101.4,3100.9,3.2248]
[1732030865090,3.22459,3101.2,3100.4,3.0]
[1732030865409,1.29638022,3101.1,3100.7,3.22501]
[1732030865620,0.435,3101.1,3100.8,3.22496]
[1732030866144,0.435,3101.1,3100.5,3.22525]
[1732030866450,0.435,3101.1,3100.2,6.2255]
[1732030866451,0.365962,3101.0,3100.2,6.2255]
[1732030866608,0.435,3101.1,3100.2,6.2255]
[1732030867060,0.435,3101.1,3100.4,3.22531]
[1732030867350,0.435,3101.1,3100.6,3.22509]
[1732030868652,0.435,3101.9,3101.3,3.22436]
[1732030868821,0.435,3101.9,3101.3,3.22444]
[1732030869227,0.61286711,3101.9,3101.3,3.22444]
[1732030869559,0.61286711,3101.9,3101.3,3.22437]
[1732030869725,0.435,3101.9,3101.4,3.22424]
[1732030869929,0.435,3101.9,3101.5,3.22419]
[1732030870451,0.435,3101.9,3101.7,3.22403]
[1732030870757,0.435,3101.9,3101.5,3.22419]
[1732030870959,0.435,3101.9,3101.5,3.22416]
[1732030871320,0.435,3101.9,3101.5,3.22417]
[1732030871810,0.435,3101.9,3101.4,3.22433]
[1732030872014,0.435,3101.9,3101.3,3.77442]
[1732030872015,0.435,3101.9,3101.5,3.22417]
[1732030872511,0.23991134,3101.8,3101.4,3.22428]
[1732030872714,0.61286711,3101.9,3101.4,3.22428]
[1732030873016,0.61286711,3101.9,3101.2,3.22455]
[1732030873017,0.19565382,3101.8,3101.2,3.22455]
[1732030873245,5.18036818,3101.9,3101.2,3.22455]
[1732030873444,3.22393,3101.8,3101.0,3.22474]
[1732030873647,3.22393,3101.8,3100.8,3.0]
[1732030873648,4.06447982,3101.7,3100.8,3.22495]
[1732030873982,3.22432,3101.5,3100.8,3.22495]
[1732030874191,4.56799107,3101.5,3100.8,3.22495]
[1732030874853,4.56799107,3101.5,3100.6,3.22515]
[1732030874854,1.34367107,3101.5,3100.6,3.22515]
[1732030875182,4.86816524,3101.4,3100.6,3.22515]
[1732030875389,3.91308832,3101.3,3100.6,3.2251]
[1732030875558,0.435,3101.2,3100.0,0.7701]
[1732030875896,0.435,3101.2,3099.7,3.83316678]
[1732030875897,3.22509,3100.7,3099.9,0.62990703]
[1732030876057,3.22509,3100.7,3100.0,3.2258]
[1732030876384,1.34367107,3100.7,3099.9,0.62990703]
[1732030876599,0.435,3100.8,3100.5,3.22524]
[1732030876600,1.77867107,3100.8,3100.5,3.22524]
[1732030876918,0.435,3100.8,3100.3,3.22543]
[1732030877245,0.435,3100.8,3100.3,0.645107]
[1732030877479,2.01751794,3101.1,3099.9,0.62990703]
[1732030877480,1.34367107,3101.1,3100.4,3.22533]
[1732030877659,1.34367107,3101.1,3100.6,3.22518]
[1732030878297,1.34367107,3101.1,3100.4,0.55]
[1732030878510,1.77867107,3101.2,3100.7,3.22507]
[1732030878679,0.94956091,3101.2,3100.3,3.22539]
[1732030878859,0.94956091,3101.2,3100.4,3.22537]
[1732030878860,1.77867107,3101.0,3100.4,3.22537]
[1732030879062,1.34367107,3100.9,3100.4,3.22537]
[1732030879557,0.435,3100.8,3100.1,3.22565]
[1732030879760,1.34367107,3100.7,3100.1,3.22565]
[1732030880001,3.22526,3100.6,3099.7,3.86388668]
[1732030880181,2.23556418,3100.5,3099.9,3.22589]
[1732030880506,1.34367107,3100.4,3099.9,3.22589]
[1732030880707,1.77867107,3100.5,3100.2,3.22558]
[1732030880877,0.435,3100.5,3100.3,3.22542]
[1732030881082,1.34367107,3100.7,3099.7,7.05922678]
[1732030881083,1.34367107,3100.7,3099.7,3.83316678]
[1732030881389,1.34367107,3101.0,3100.5,3.22522]
[1732030881777,1.34367107,3100.9,3100.5,3.22522]
[1732030881958,1.34367107,3101.0,3100.5,3.22522]
[1732030882166,1.34367107,3101.0,3100.6,3.22518]
[1732030882390,2.93815098,3101.1,3100.2,3.55]
[1732030882613,1.77867107,3101.1,3100.5,3.2252]
[1732030882899,1.34367107,3101.0,3100.7,3.225]
[1732030883105,1.77867107,3101.1,3100.7,3.225]
[1732030883285,5.00340107,3101.1,3100.4,3.0]
[1732030883600,1.34367107,3100.9,3100.5,3.22521]
[1732030883801,1.34367107,3100.9,3100.4,3.0]
[1732030884017,1.34367107,3100.8,3100.4,3.0]
[1732030884597,1.34367107,3100.7,3100.4,3.0]
[1732030884798,1.34367107,3100.7,3100.4,6.22537]
[1732030885002,1.34367107,3100.8,3100.2,0.55]
[1732030885202,1.34367107,3100.7,3100.2,3.77559]
[1732030885357,1.34367107,3100.7,3100.4,3.22538]
[1732030885557,1.34367107,3100.7,3100.4,3.98658]
[1732030885763,1.34367107,3100.8,3100.5,3.22527]
[1732030886008,1.34367107,3100.7,3100.5,3.22527]
[1732030886216,1.34367107,3100.7,3100.1,3.87712637]
[1732030886361,0.435,3100.6,3099.7,0.7616]
[1732030886563,3.22571,3100.1,3099.2,3.9882]
[1732030886765,3.22571,3100.1,3099.4,3.22635]
[1732030886766,4.56949107,3100.0,3099.4,3.22635]
[1732030886991,1.34367107,3099.9,3099.4,3.22635]
[1732030887177,1.34367107,3099.9,3099.4,4.01190909]
[1732030887377,1.34367107,3099.8,3099.6,3.22621]
[1732030887663,2.01751794,3100.0,3099.5,3.22629]
[1732030887664,1.34367107,3099.9,3099.5,3.22629]
[1732030888324,1.34367107,3099.8,3099.6,3.22616]
[1732030888641,1.34367107,3099.8,3099.5,3.0]
[1732030888809,1.34367107,3099.8,3099.5,6.2263]
[1732030889213,1.34367107,3099.8,3099.5,9.45252]
[1732030889452,1.34367107,3099.8,3099.6,3.22622]
[1732030889656,1.34367107,3099.8,3099.2,1.40264093]
[1732030889657,1.34367107,3099.8,3099.4,3.0]
[1732030889957,1.34367107,3099.8,3099.2,1.40264093]
[1732030889958,1.34367107,3099.6,3099.3,3.0]
[1732030890167,3.22639,3099.5,3099.2,0.64104093]
[1732030890317,5.00520107,3099.3,3098.4,3.22741]
[1732030890520,3.22678,3099.1,3098.4,3.22745]
[1732030890758,1.34367107,3098.9,3098.1,4.02443]
[1732030890912,3.66195,3098.9,3098.1,4.02443]
[1732030891111,0.435,3098.9,3097.7,3.83316678]
[1732030891316,1.27223891,3098.9,3097.8,0.7772]
[1732030891642,2.61817293,3098.9,3098.4,3.22741]
[1732030891816,2.61817293,3098.9,3098.0,3.22785]
[1732030891817,2.61817293,3098.9,3098.5,3.22728]
[1732030892039,1.34593402,3098.9,3098.6,3.22716]
[1732030892262,1.34593402,3099.1,3098.9,3.22695]
[1732030892569,1.34593402,3099.2,3098.9,3.22695]
[1732030892716,1.34593402,3099.3,3098.9,3.22695]
[1732030892911,1.34593402,3099.2,3098.9,3.22695]
[1732030893461,1.34593402,3099.2,3098.7,3.22714]
[1732030893462,1.34593402,3099.3,3098.7,3.22714]
[1732030893619,1.34593402,3099.2,3098.8,3.2321543]
[1732030894015,1.34593402,3099.2,3098.8,0.0051343]
[1732030894256,1.34593402,3099.3,3098.8,0.0051343]
[1732030894464,4.57246402,3099.3,3098.8,0.0051343]
[1732030894758,4.57246402,3099.3,3098.8,3.2321743]
[1732030894968,1.34593402,3099.3,3098.8,3.2321743]
[1732030895266,1.34593402,3099.3,3098.8,0.0051343]
[1732030895623,1.34593402,3099.3,3098.8,3.2321643]
[1732030895818,1.34593402,3099.3,3099.0,3.22682]
[1732030896018,1.34593402,3099.4,3099.0,3.22682]
[1732030896418,1.34593402,3099.5,3099.1,3.22673]
[1732030896619,2.01751794,3099.6,3099.3,3.22646]
[1732030896620,1.34593402,3099.6,3099.3,3.22646]
[1732030896864,3.1280912,3099.8,3099.1,0.645355]
[1732030896865,1.34593402,3099.8,3099.6,3.22622]
[1732030897030,1.34593402,3099.9,3099.8,3.22601]
[1732030897229,0.435,3100.1,3099.6,3.22622]
[1732030897530,1.34593402,3099.9,3099.4,3.22636]
[1732030898131,1.34593402,3099.9,3099.5,3.2263]
[1732030898538,5.9187312,3100.2,3099.5,3.2263]
[1732030898539,1.34593402,3100.0,3099.5,3.22622]
[1732030898738,1.34593402,3100.0,3099.6,3.77616]
[1732030898977,2.01751794,3100.2,3099.6,3.77616]
[1732030898978,1.34593402,3100.1,3099.7,3.22611]
[1732030899581,1.34593402,3100.0,3099.7,3.22611]
[1732030899997,3.22627,3099.6,3098.9,0.7698]
[1732030900154,1.34593402,3099.5,3098.9,0.7698]
[1732030900352,1.34593402,3099.6,3099.2,3.22661]
[1732030901068,1.34593402,3099.6,3098.9,3.99669]
[1732030901386,1.34593402,3099.5,3099.1,3.22664]
[1732030901682,1.34593402,3099.6,3099.1,3.22664]
[1732030902041,1.34593402,3099.6,3098.9,3.99667]
[1732030902042,1.34593402,3099.5,3098.9,3.99667]
[1732030902241,3.22644,3099.4,3098.8,3.5551343]
[1732030902506,3.22644,3099.4,3098.8,0.0051343]
[1732030902507,0.435,3099.3,3098.8,0.0051343]
[1732030902659,1.78093402,3099.3,3098.8,3.2321843]
[1732030904652,0.55721294,3099.2,3098.8,3.2321743]
[1732030905391,0.55721294,3099.2,3098.8,0.0051343]
[1732030905743,3.78391294,3099.2,3098.8,0.0051343]
[1732030905944,5.12984696,3099.2,3098.8,0.0051343]
[1732030906189,3.2268,3099.1,3098.8,0.0051343]
[1732030906489,1.90314696,3099.2,3098.8,0.0051343]
[1732030906960,0.55721294,3099.2,3098.8,3.2321343]
[1732030907450,1.34593402,3099.4,3098.8,3.2321343]
[1732030907649,1.34593402,3099.4,3098.9,0.8042]
[1732030907845,1.34593402,3099.4,3099.1,3.22668]
[1732030908059,1.34593402,3099.4,3099.0,3.22678]
[1732030908291,1.34593402,3099.4,3099.1,0.403098]
[1732030908469,1.34593402,3099.4,3099.0,3.22679]
[1732030909155,3.22617,3099.7,3099.0,3.22679]
[1732030909350,3.22617,3099.7,3099.2,3.22663]
[1732030909593,0.435,3099.9,3099.2,3.22663]
[1732030909893,0.435,3099.9,3099.4,3.22641]
[1732030910051,1.34312037,3099.8,3099.4,3.22641]
[1732030910451,1.34312037,3099.8,3099.5,3.22626]
[1732030910693,1.34312037,3099.8,3099.4,3.22641]
[1732030910853,1.34312037,3099.8,3099.4,3.22635]
[1732030911351,2.00148146,3099.8,3099.1,3.22667]
[1732030911697,1.34312037,3099.8,3099.6,6.45229]
[1732030911999,1.34312037,3099.8,3099.6,3.22614]
[1732030912198,1.34312037,3099.8,3099.6,6.45228]
[1732030912354,1.34312037,3099.8,3099.6,3.22614]
[1732030912690,1.34312037,3099.8,3099.7,3.22611]
[1732030913197,1.34312037,3099.8,3099.6,3.22614]
[1732030913377,1.34312037,3099.8,3099.7,3.22611]
[1732030913692,1.34312037,3099.8,3099.7,3.77611]
[1732030915453,1.34312037,3099.8,3099.5,4.01024]
[1732030915656,1.34312037,3099.8,3099.4,3.0]
[1732030916296,1.34312037,3099.8,3099.5,3.22632]
[1732030918498,3.22622,3099.7,3099.1,3.22668]
[1732030918661,3.22622,3099.7,3099.0,3.22678]
[1732030918999,1.67890046,3099.8,3099.3,3.22646]
[1732030919164,1.34312037,3099.8,3099.3,3.22646]
[1732030919505,3.22613,3099.7,3099.1,3.22672]
[1732030919799,3.22627,3099.6,3099.0,3.0]
[1732030920215,3.22622,3099.6,3099.0,3.0]
[1732030920395,4.56941037,3099.6,3099.1,3.0]
[1732030920708,1.34312037,3099.8,3099.5,3.98682]
[1732030921024,1.34312037,3100.1,3099.7,3.22611]
[1732030921300,2.01468055,3100.2,3099.5,0.7605]
[1732030921301,1.34312037,3100.2,3100.0,3.2258]
[1732030921501,1.34312037,3100.2,3099.9,3.22581]
[1732030921702,1.34312037,3100.1,3099.9,3.0]
[1732030921908,1.34312037,3100.1,3100.0,3.2258]
[1732030922121,1.34312037,3100.2,3100.1,3.2257]
[1732030922317,1.34312037,3100.3,3100.2,3.22559]
[1732030922488,1.34312037,3100.6,3100.3,3.22549]
[1732030922695,1.34312037,3100.7,3100.5,3.22528]
[1732030923221,1.34312037,3100.7,3100.5,3.22522]
[1732030923388,1.34312037,3100.9,3100.5,3.22522]
[1732030923729,1.34312037,3100.9,3100.7,3.22507]
[1732030924576,1.34312037,3100.9,3100.7,3.225]
[1732030924821,1.34312037,3100.8,3100.7,3.225]
[1732030925316,1.34312037,3100.9,3100.7,3.225]
[1732030925472,1.34312037,3100.9,3100.8,6.77497]
[1732030925677,1.34312037,3101.1,3100.9,3.22487]
[1732030925878,1.34312037,3101.2,3101.1,6.22466]
[1732030926301,1.34312037,3101.5,3101.1,6.22466]
[1732030926525,1.34312037,3101.5,3101.3,3.22436]
[1732030926719,1.34312037,3101.6,3101.4,3.22429]
[1732030926888,1.34312037,3101.7,3101.3,3.22436]
[1732030927098,1.34312037,3101.7,3101.5,3.22422]
[1732030927309,2.09024444,3101.8,3101.5,3.22422]
[1732030927488,2.09024444,3101.8,3101.7,3.22403]
[1732030927489,1.65524444,3101.8,3101.7,3.22403]
[1732030927685,1.34312037,3101.9,3101.8,3.22393]
[1732030927894,1.34312037,3102.0,3101.8,3.22393]
[1732030928100,1.34312037,3102.1,3101.9,3.22383]
[1732030928402,2.31405635,3102.3,3101.9,3.22383]
[1732030928639,1.34312037,3102.2,3101.7,3.22403]
[1732030928806,1.34312037,3102.1,3101.7,3.22403]
[1732030929304,1.34312037,3102.2,3101.9,3.22382]
[1732030929492,1.8567125,3102.3,3101.7,3.22403]
[1732030929698,0.18567125,3102.1,3101.7,3.22403]
[1732030929941,0.18567125,3102.1,3101.6,3.0]
[1732030930439,0.18567125,3102.1,3101.6,6.2241]
[1732030930794,0.18567125,3102.1,3101.7,3.224]
[1732030931143,0.18567125,3102.1,3101.7,3.22394]
[1732030931432,0.435,3102.4,3102.2,3.22351]
[1732030931660,1.34312037,3102.6,3102.2,3.22351]
[1732030931805,1.34312037,3102.7,3102.5,3.2232]
[1732030931994,1.34312037,3102.9,3102.5,3.22314]
[1732030932190,3.65764,3103.1,3102.5,3.22314]
[1732030932191,0.47009213,3102.8,3102.5,3.22314]
[1732030932409,3.22271,3103.0,3102.4,3.22329]
[1732030932631,0.50008304,3102.9,3102.4,3.22329]
[1732030932802,0.50008304,3102.9,3102.3,3.22339]
[1732030933008,0.435,3103.1,3102.5,3.2232]
[1732030933315,3.22269,3103.0,3102.4,3.22324]
[1732030933532,0.50006004,3103.0,3102.3,3.22333]
[1732030933865,0.50006004,3103.0,3102.5,3.22312]
[1732030934030,0.50006004,3103.0,3102.3,3.22333]
[1732030934031,0.50006004,3103.0,3102.1,0.7847]
[1732030934222,0.50006004,3103.0,3102.5,3.22314]
[1732030934418,0.50006004,3103.0,3102.6,3.22307]
[1732030934619,0.435,3103.1,3102.5,3.22314]
[1732030934859,3.65762,3103.1,3102.5,3.22314]
[1732030935059,0.435,3103.1,3102.5,3.22319]
[1732030935373,0.435,3103.1,3102.6,3.22308]
[1732030935955,0.435,3103.1,3102.1,0.7847]
[1732030936162,0.435,3103.1,3101.6,3.0]
[1732030936163,3.22352,3102.2,3101.6,3.22409]
[1732030936472,0.322352,3102.1,3101.5,0.8309]
[1732030936673,3.65774,3103.0,3102.3,3.22334]
[1732030936819,0.435,3103.0,3102.6,3.22302]
[1732030937260,0.01,3103.5,3103.2,3.2224]
[1732030937261,0.435,3103.5,3103.2,3.2224]
[1732030937569,0.435,3103.5,3102.9,3.2227]
[1732030938084,0.435,3103.5,3103.0,3.22265]
[1732030938279,3.65722,3103.5,3102.9,3.22274]
[1732030938443,3.22237,3103.3,3102.7,3.77294]
[1732030938627,3.65722,3103.5,3102.8,3.22283]
[1732030938828,0.435,3103.5,3102.8,3.22283]
[1732030939057,0.435,3103.5,3103.0,3.22267]
[1732030939479,3.65718,3103.5,3103.0,3.22267]
[1732030939671,0.365718,3103.4,3102.9,3.2227]
[1732030939837,0.365718,3103.4,3103.3,0.0051343]
[1732030941074,3.587988,3103.4,3103.3,0.0051343]
[1732030941576,4.022988,3103.4,3103.3,0.0051343]
[1732030941928,8.21388214,3103.4,3103.3,4.3e-06]
[1732030942278,0.435,3102.1,3101.5,3.22416]
[1732030942477,3.2238,3102.0,3101.3,3.98157]
[1732030942679,0.435,3102.1,3101.7,3.224]
[1732030942967,3.22312,3102.6,3102.0,3.22363]
[1732030943175,3.22328,3102.5,3101.9,3.22382]
[1732030943342,3.22328,3102.5,3101.9,6.44758]
[1732030943343,3.589092,3102.5,3101.9,6.44758]
[1732030943529,3.589092,3102.5,3101.9,3.2238]
[1732030943727,3.589092,3102.5,3101.9,3.22376]
[1732030944127,3.5822692,3102.4,3101.9,3.22381]
[1732030944367,0.3589092,3102.4,3101.7,3.22398]
[1732030944525,3.22342,3102.3,3101.7,6.44795]
[1732030944731,3.22342,3102.3,3101.7,3.22397]
[1732030945132,3.22378,3102.0,3101.5,3.0]
[1732030945345,0.435,3102.2,3101.4,6.22432]
[1732030945346,3.2237,3102.1,3101.4,6.22432]
[1732030945531,3.22389,3101.9,3101.4,6.22432]
[1732030945727,3.22393,3101.8,3101.3,6.98164]
[1732030945952,3.22378,3102.0,3101.4,3.22433]
[1732030946155,3.2239,3101.9,3101.4,3.22433]
[1732030946355,0.40640314,3102.0,3101.4,3.22425]
[1732030946597,3.22373,3102.0,3101.4,3.22425]
[1732030946752,3.22391,3101.9,3101.2,6.44899]
[1732030947102,3.22369,3102.1,3101.5,3.22416]
[1732030947401,0.435,3102.5,3102.1,3.2236]
[1732030947598,0.81809897,3102.8,3102.3,3.22331]
[1732030947802,0.435,3102.8,3102.3,3.22331]
[1732030948103,0.435,3102.8,3101.8,3.22393]
[1732030948104,0.35414741,3102.9,3102.6,3.22303]
[1732030948255,0.435,3103.1,3102.3,3.22339]
[1732030948484,3.22293,3102.8,3102.3,3.22339]
[1732030948679,3.22276,3103.0,3102.3,3.22333]
[1732030948986,0.435,3103.1,3102.7,3.22298]
[1732030949327,0.435,3103.1,3102.7,3.22296]
[1732030950230,3.65758,3103.1,3102.6,3.22309]
[1732030950535,0.435,3103.1,3102.7,3.22299]
[1732030950742,3.46235743,3103.0,3102.5,3.22315]
[1732030951027,0.435,3103.1,3102.5,3.22315]
[1732030951028,3.65764,3103.1,3102.5,3.22314]
[1732030951233,0.23965271,3103.0,3102.5,3.22314]
[1732030951396,0.23965271,3102.9,3102.5,3.22314]
[1732030951596,4.345652,3103.1,3102.5,3.22314]
[1732030951913,4.345652,3103.1,3102.5,6.44628]
[1732030951914,0.23981312,3103.0,3102.5,6.44628]
[1732030952084,0.23981312,3102.9,3102.6,3.22309]
[1732030952322,0.23981312,3102.8,3102.6,3.22309]
[1732030952522,4.345652,3103.1,3102.5,3.22314]
[1732030952734,0.23999765,3103.0,3102.6,3.22309]
[1732030952935,0.23999765,3102.9,3102.6,3.22309]
[1732030953163,0.23999765,3102.8,3102.6,3.22309]
[1732030953363,0.23999765,3102.7,3102.6,3.22309]
[1732030953544,0.23999765,3102.7,3102.4,6.22322]
[1732030953752,3.65764,3103.1,3102.4,6.22322]
[1732030953965,3.22306,3102.7,3102.1,3.22355]
[1732030954145,3.46326857,3102.6,3102.1,0.55]
[1732030954347,0.24013857,3102.5,3102.1,0.55]
[1732030954648,0.24013857,3102.4,3102.0,0.55]
[1732030954815,0.24013857,3102.3,3102.0,0.55]
[1732030955015,0.435,3102.5,3101.9,3.88119431]
[1732030955270,0.435,3102.5,3101.9,3.22376]
[1732030955271,0.24046063,3102.4,3101.9,3.22376]
[1732030955474,0.24046063,3102.4,3102.0,3.0]
[1732030955780,0.435,3101.9,3101.3,3.22435]
[1732030956063,0.435,3101.9,3101.2,3.22455]
[1732030956064,0.24046063,3101.8,3101.2,6.44901]
[1732030956281,0.24046063,3101.7,3101.4,3.22428]
[1732030956577,0.24046063,3101.6,3101.1,0.7826]
[1732030956731,0.24046063,3101.5,3101.4,3.22435]
[1732030956931,0.435,3101.9,3101.4,3.22435]
[1732030957159,0.62547156,3101.8,3101.1,0.7826]
[1732030957332,0.31922433,3102.5,3102.1,3.22354]
[1732030957516,3.84874288,3102.4,3101.9,3.22377]
[1732030957721,0.62543288,3102.3,3101.9,3.22376]
[1732030957972,0.24055111,3102.2,3102.1,3.22361]
[1732030958490,0.435,3102.6,3101.7,1.47226649]
[1732030958491,0.435,3102.6,3102.0,3.22367]
[1732030958667,3.65819,3102.6,3102.0,3.22367]
[1732030958840,0.62540648,3102.5,3102.0,3.22367]
[1732030959051,0.62540648,3102.4,3102.0,3.22367]
[1732030959347,0.62540648,3102.4,3101.8,3.22384]
[1732030959348,0.24054095,3102.3,3101.8,3.22384]
[1732030959668,1.123109,3102.6,3102.0,3.22368]
[1732030959669,0.24054095,3102.2,3102.0,3.22368]
[1732030959893,0.435,3102.6,3102.1,3.22362]
[1732030960200,0.62557283,3102.5,3102.1,3.22362]
[1732030960344,0.24060493,3102.4,3102.0,3.22368]
[1732030960549,0.24060493,3102.3,3102.0,3.22368]
[1732030960756,0.24060493,3102.2,3102.1,3.22362]
[1732030961350,0.24060493,3102.2,3102.0,3.22368]
[1732030961571,3.65817,3102.6,3102.1,3.22362]
[1732030961772,0.62568186,3102.5,3102.1,3.22362]
[1732030961956,0.62568186,3102.4,3102.1,3.22362]
[1732030962283,0.24064687,3102.3,3102.0,3.2237]
[1732030962510,3.22354,3102.2,3101.7,0.64996649]
[1732030962788,0.365817,3102.5,3101.2,3.22445]
[1732030962789,3.22392,3101.9,3101.4,3.64822271]
[1732030963005,0.24064687,3101.8,3101.4,3.22434]
[1732030963296,0.24064687,3101.7,3101.4,3.22434]
[1732030963445,0.71233169,3101.8,3101.4,3.22434]
[1732030963446,0.24064687,3101.6,3101.4,3.22434]
[1732030963646,0.71233169,3101.8,3101.5,3.22424]
[1732030963849,0.435,3102.0,3101.6,3.22407]
[1732030964089,0.24064005,3101.9,3101.6,3.22407]
[1732030964255,0.435,3102.0,3101.6,3.22407]
[1732030964256,0.435,3102.0,3101.7,3.22397]
[1732030964442,0.24061012,3101.9,3101.6,3.22413]
[1732030964641,0.24062213,3101.8,3101.6,6.44821]
[1732030964842,0.435,3102.0,3101.6,6.44816]
[1732030965090,0.50127552,3101.7,3101.6,3.22408]
[1732030965302,0.98337341,3101.7,3101.6,3.22408]
[1732030966391,0.98337341,3101.7,3101.5,3.22424]
[1732030966682,0.98337341,3101.6,3101.5,3.77424]
[1732030966891,0.78198981,3101.6,3101.5,3.77424]
[1732030967053,1.33905179,3102.3,3101.8,3.22384]
[1732030967387,2.00857768,3102.5,3102.1,3.22362]
[1732030967388,0.30072055,3102.2,3102.1,3.22362]
[1732030967690,3.22314,3102.6,3102.0,3.0]
[1732030967857,3.22314,3102.6,3102.1,0.55]
[1732030967858,0.5412391,3102.5,3102.1,0.55]
[1732030968056,2.03962874,3102.6,3102.1,3.77353]
[1732030968262,1.88043365,3102.5,3102.1,3.77353]
[1732030968600,1.33905179,3102.6,3102.1,3.77353]
[1732030968744,1.33905179,3102.7,3102.5,3.2232]
[1732030969260,1.33905179,3102.7,3102.5,6.4464]
[1732030969593,1.33905179,3102.7,3102.5,3.2232]
[1732030969900,1.33905179,3102.8,3102.5,3.2232]
[1732030970490,1.33905179,3102.7,3102.5,3.2232]
[1732030970663,1.33905179,3102.7,3102.4,0.8271]
[1732030971053,1.33905179,3102.8,3102.4,0.8271]
[1732030971205,0.54164542,3102.7,3102.3,3.22341]
[1732030971413,0.24074853,3102.6,3102.1,3.22352]
[1732030971574,0.65704995,3102.7,3102.0,3.77372]
[1732030971899,3.22327,3102.5,3102.0,3.0]
[1732030972112,0.54171054,3102.4,3102.0,3.0]
[1732030972262,0.435,3102.4,3102.0,3.0]
[1732030972864,0.435,3102.4,3102.2,3.22351]
[1732030973069,1.33905179,3102.5,3102.2,3.22351]
[1732030973409,0.49615846,3102.5,3102.0,9.44737]
[1732030973577,0.49615846,3102.5,3102.0,6.22366]
[1732030973908,3.71938846,3102.5,3101.9,6.2238]
[1732030974083,0.42411836,3102.4,3101.9,6.2238]
[1732030974403,0.30098232,3102.3,3101.5,0.7519]
[1732030974562,0.42411836,3102.4,3101.9,3.22376]
[1732030974778,0.66571168,3102.3,3101.9,6.44748]
[1732030975122,0.36473784,3102.3,3101.9,3.22372]
[1732030975422,0.36473784,3102.3,3101.7,3.22397]
[1732030975423,0.36473784,3102.3,3102.0,3.22363]
[1732030975729,0.36473784,3102.3,3101.8,3.22383]
[1732030976019,3.22363,3102.1,3101.6,3.55]
[1732030976232,0.435,3102.0,3101.6,3.0]
[1732030976392,0.435,3102.0,3101.6,6.22406]
[1732030976798,0.435,3102.0,3101.6,3.0]
[1732030977225,1.3479488,3101.7,3101.6,3.0]
[1732030977620,1.3479488,3101.7,3101.6,6.22414]
[1732030977797,1.3479488,3101.7,3101.6,3.0]
[1732030978335,1.34793872,3101.7,3101.6,3.0]
[1732030978593,1.34793941,3101.7,3101.6,3.0]
[1732030978758,1.34793941,3101.7,3101.4,0.55]
[1732030979059,2.0219232,3101.5,3101.3,3.0]
[1732030979274,5.75165391,3101.5,3101.0,3.85437902]
[1732030979545,1.34791192,3101.3,3101.1,3.2246]
[1732030979745,1.34791192,3101.3,3101.2,3.22455]
[1732030980056,1.34791192,3101.3,3101.0,3.85437902]
[1732030980057,1.34790581,3101.3,3101.1,3.22461]
[1732030980469,1.34790581,3101.3,3101.0,0.62962902]
[1732030980687,1.34790581,3101.3,3100.7,3.0]
[1732030980688,1.34790581,3101.2,3100.7,3.0]
[1732030980945,1.34790581,3101.2,3100.6,4.04693]
[1732030980946,1.34790581,3100.9,3100.6,4.04693]
[1732030981117,1.34790581,3101.0,3100.8,3.22495]
[1732030981533,1.34790581,3101.0,3100.9,3.22487]
[1732030981743,2.0219232,3101.1,3101.0,3.22476]
[1732030981744,1.34790581,3101.1,3101.0,3.22476]
[1732030981905,2.0219232,3101.5,3101.3,3.22445]
[1732030982099,1.34734624,3101.5,3101.3,3.22445]
[1732030982518,1.34734624,3101.4,3101.3,3.22445]
[1732030982722,2.0219232,3101.5,3101.4,3.22435]
[1732030982982,2.0219232,3101.6,3101.3,3.22445]
[1732030983271,1.34718622,3101.5,3101.4,3.22434]
[1732030983603,2.0219232,3101.6,3101.4,3.22434]
[1732030983771,2.0219232,3101.6,3101.5,3.22424]
[1732030983924,2.0219232,3101.7,3101.3,0.55]
[1732030984125,1.34716494,3101.5,3101.4,3.22435]
[1732030984430,2.0219232,3101.6,3101.4,3.22435]
[1732030984866,2.0219232,3101.6,3101.4,3.22428]
[1732030985752,1.34752366,3101.5,3101.4,3.22428]
[1732030985925,1.34752366,3101.6,3101.5,6.22424]
[1732030986270,2.0219232,3101.8,3101.7,3.22403]
[1732030986917,2.0219232,3101.8,3101.7,3.77403]
[1732030987371,3.36796555,3102.1,3101.8,6.77393]
[1732030987372,1.34787865,3101.9,3101.8,6.77393]
[1732030987675,1.34787865,3101.9,3101.7,4.975147]
[1732030987676,1.34787865,3102.1,3101.9,6.77383]
[1732030987889,1.34787865,3102.1,3102.0,3.77372]
[1732030988245,2.6958976,3102.4,3102.0,3.77372]
[1732030988246,1.34787865,3102.2,3102.1,3.22362]
[1732030988445,2.0219232,3102.4,3102.3,0.774]
[1732030988446,1.34787865,3102.4,3102.3,0.774]